fUSD/lending_fUSD_20260202
["ID","MTS","AMOUNT","RATE_DAILY","PERIOD"]
[404349783,1770070317880,-318.174447,0.00043927,120]
[404349784,1770070317896,-318.174447,0.00043927,120]
[404349785,1770070317911,-318.174447,0.00043927,120]
[404349786,1770070317927,-318.174442,0.00043927,120]
[404349787,1770070317942,-151.0,0.00043927,120]
[404349788,1770070317958,-151.0,0.00043927,120]
[404349789,1770070317972,-151.0,0.00043927,120]
[404349790,1770070317987,-151.0,0.00043927,120]
[404349791,1770070318002,-151.0,0.00043927,120]
[404349792,1770070318017,-151.0,0.00043927,120]
[404349793,1770070318031,-151.0,0.00043927,120]
[404349794,1770070318047,-151.0,0.00043927,120]
[404349795,1770070318062,-236.919708,0.00043927,120]
[404349796,1770070318077,-151.0,0.00043927,120]
[404349797,1770070318092,-174.677664,0.00043927,120]
[404349798,1770070318107,-174.677664,0.00043927,120]
[404349799,1770070318122,-174.677664,0.00043927,120]
[404349800,1770070318140,-174.677664,0.00043927,120]
[404349801,1770070318162,-181.408787,0.00043927,120]
[404349802,1770070318177,-181.408787,0.00043927,120]
[404349803,1770070318192,-174.677664,0.00043927,120]
[404349804,1770070318206,-174.677664,0.00043927,120]
[404349805,1770070318221,-181.408787,0.00043927,120]
[404349806,1770070318236,-181.408787,0.00043927,120]
[404349807,1770070318253,-174.677664,0.00043927,120]
[404349808,1770070318267,-174.677659,0.00043927,120]
[404349809,1770070318284,-181.408787,0.00043927,120]
[404349810,1770070318298,-181.408787,0.00043927,120]
[404349811,1770070318314,-181.408787,0.00043927,120]
[404349812,1770070318327,-181.40878,0.00043927,120]
[404349813,1770070318342,-1311.465332,0.00043927,28]
[404349814,1770070318356,-1311.465332,0.00043927,28]
[404349815,1770070318372,-1311.465332,0.00043927,28]
[404349816,1770070318386,-1311.465332,0.00043927,28]
[404349817,1770070318402,-1311.465332,0.00043927,28]
[404349818,1770070318416,-1311.465332,0.00043927,28]
[404349819,1770070318430,-1311.465332,0.00043927,28]
[404349820,1770070318444,-1311.465324,0.00043927,28]
[404349821,1770070318461,-151.0,0.00043927,120]
[404349822,1770070318476,-299.017282,0.00043927,120]
[404349823,1770070318491,-151.0,0.00043927,120]
[404349824,1770070318505,-151.0,0.00043927,120]
[404349825,1770070318519,-151.0,0.00043927,120]
[404349826,1770070318533,-151.0,0.00043927,120]
[404349827,1770070318548,-151.0,0.00043927,120]
[404349828,1770070318562,-151.0,0.00043927,120]
[404349829,1770070318577,-151.0,0.00043927,120]
[404349830,1770070318592,-151.0,0.00043927,120]
[404349831,1770070318610,-151.0,0.00043927,120]
[404349832,1770070318619,-151.0,0.00043927,120]
[404349833,1770070318629,-151.0,0.00043927,120]
[404349834,1770070318638,-151.0,0.00043927,120]
[404349835,1770070318648,-151.0,0.00043927,120]
[404349836,1770070318893,-151.0,0.00043927,90]
[404349837,1770070318910,-151.0,0.00043927,90]
[404349838,1770070318920,-255.852875,0.00043927,90]
[404349839,1770070318929,-1304.106458,0.00043927,120]
[404349840,1770070318939,-151.0,0.00043927,120]
[404349841,1770070318949,-151.0,0.00043927,120]
[404349842,1770070318959,-1304.106458,0.00043927,120]
[404349843,1770070318969,-151.0,0.00043927,120]
[404349844,1770070318978,-1304.106458,0.00043927,120]
[404349845,1770070318988,-151.0,0.00043927,120]
[404349846,1770070318997,-1304.106458,0.00043927,120]
[404349847,1770070319007,-1304.106458,0.00043927,120]
[404349848,1770070319016,-151.0,0.00043927,120]
[404349849,1770070319027,-1304.106458,0.00043927,120]
[404349850,1770070319037,-151.0,0.00043927,120]
[404349851,1770070319048,-1304.106458,0.00043927,120]
[404349852,1770070319057,-1304.106458,0.00043927,120]
[404349853,1770070319067,-151.0,0.00043927,120]
[404349854,1770070319076,-1304.106458,0.00043927,120]
[404349855,1770070319085,-151.0,0.00043927,120]
[404349856,1770070319095,-151.0,0.00043927,120]
[404349857,1770070319105,-426943.9033156,0.00043927,10]
[404349858,1770070319804,-151.0,0.00013698,2]
[404349859,1770070319815,-150.0,0.00024658,2]
[404349860,1770070319826,-1111.70221777,0.00025644,2]
[404349861,1770070319835,-150.0,0.00027123,2]
[404349862,1770070319843,-172.53,0.0003292,2]
[404349863,1770070319852,-2467.88,0.00035671,2]
[404349864,1770070319862,-628.04,0.00038309,2]
[404349865,1770070319871,-594.055482,0.00038356,120]
[404349866,1770070319880,-594.055482,0.00038356,120]
[404349867,1770070319889,-516.46654263,0.00039547,2]
[404349868,1770070319899,-1304.106458,0.00041059,120]
[404349869,1770070319910,-594.055482,0.00041059,120]
[404349870,1770070319919,-594.055482,0.00041059,120]
[404349871,1770070319928,-582.08654404,0.00043287,60]
[404349872,1770070319937,-3253.0,0.00043674,2]
[404349873,1770070319946,-1304.106458,0.00043927,120]
[404349874,1770070319955,-1304.106458,0.00043927,120]
[404349875,1770070319964,-1304.10646118,0.00043927,120]
[404349876,1770070319973,-594.055482,0.00043927,120]
[404349877,1770070319982,-594.055482,0.00043927,120]
[404349878,1770070319990,-541.32014784,0.00043927,120]
[404349879,1770070320001,-52.73533416,0.00043927,120]
[404349880,1770070320010,-447.914045,0.00043927,120]
[404349881,1770070320022,-146.141437,0.00043927,120]
[404349882,1770070320031,-594.055482,0.00043927,120]
[404349883,1770070320040,-26846.79550459,0.00043927,10]
[404349884,1770070320051,-627.37325572,0.00043927,10]
[404349885,1770070320062,-595.63750524,0.00043927,10]
[404349886,1770070320073,-9122.49793244,0.00043927,10]
[404349887,1770070320177,-151.0,0.00013973,2]
[404349888,1770070320187,-150.0,0.00029836,2]
[404349889,1770070320197,-428.759996,0.00038356,120]
[404349890,1770070320208,-165.295486,0.00038356,120]
[404349891,1770070320217,-304.98391669,0.00039547,2]
[404349892,1770070320226,-594.055482,0.00041059,120]
[404349893,1770070320235,-594.055482,0.00043927,120]
[404349894,1770070320248,-594.055482,0.00043927,120]
[404349895,1770070320258,-15647.55415131,0.00043927,10]
[404349896,1770070320348,-825.99408994,0.00013595,2]
[404349897,1770070322386,10000.01,9.741e-05,2]
[404349898,1770070322415,1446.6343,9.741e-05,2]
[404349899,1770070322671,2500.0,9.741e-05,2]
[404349900,1770070322828,-843.68122311,9.843e-05,2]
[404349901,1770070322954,-156.31877689,9.843e-05,2]
[404349902,1770070323420,9687.37244622,9.741e-05,2]
[404349903,1770070323452,10000.01,9.741e-05,2]
[404349904,1770070323485,10000.01,9.741e-05,2]
[404349905,1770070323516,10000.01,9.741e-05,2]
[404349906,1770070323545,10000.01,9.741e-05,2]
[404349907,1770070323575,10000.01,9.741e-05,2]
[404349908,1770070323608,10000.01,9.741e-05,2]
[404349909,1770070323638,10000.01,9.741e-05,2]
[404349910,1770070323673,10000.01,9.741e-05,2]
[404349911,1770070323701,10000.01,9.741e-05,2]
[404349912,1770070325741,-150.0,9.74e-05,2]
[404349913,1770070325765,-1292.29277205,9.741e-05,2]
[404349914,1770070328537,-769.45347374,9.741e-05,2]
[404349915,1770070330729,-195.17,9.741e-05,2]
[404349916,1770070332288,-1601.98415386,9.741e-05,2]
[404349917,1770070334483,-190.48782475,9.741e-05,2]
[404349918,1770070338902,-1492.90782458,9.741e-05,2]
[404349919,1770070340542,-907.2260868,9.741e-05,2]
[404349920,1770070342088,-650.0,9.741e-05,2]
[404349921,1770070344201,-500.0,9.741e-05,2]
[404349922,1770070344318,-6116.01115778,9.741e-05,2]
[404349923,1770070344591,-10000.01,9.741e-05,2]
[404349924,1770070344895,-10000.01,9.741e-05,2]
[404349925,1770070345178,-10000.01,9.741e-05,2]
[404349926,1770070345439,-10000.01,9.741e-05,2]
[404349927,1770070345744,-10000.01,9.741e-05,2]
[404349928,1770070346023,-10000.01,9.741e-05,2]
[404349929,1770070346334,-10000.01,9.741e-05,2]
[404349930,1770070346611,-10000.01,9.741e-05,2]
[404349931,1770070347872,-1376.4768139,9.741e-05,2]
[404349932,1770070349903,-10000.01,9.741e-05,2]
[404349933,1770070351132,-1045.99429143,9.741e-05,2]
[404349934,1770070352790,-10000.01,9.741e-05,2]
[404349935,1770070352922,-10000.01,9.741e-05,2]
[404349936,1770070353158,-10000.01,9.741e-05,2]
[404349937,1770070353341,-10000.01,9.741e-05,2]
[404349938,1770070353484,-10000.01,9.741e-05,2]
[404349939,1770070353635,-10000.01,9.741e-05,2]
[404349940,1770070353774,-10000.01,9.741e-05,2]
[404349941,1770070353919,-10000.01,9.741e-05,2]
[404349942,1770070354075,-10000.01,9.741e-05,2]
[404349943,1770070354105,-235.0,9.741e-05,2]
[404349944,1770070355818,-1073.24458984,9.741e-05,2]
[404349945,1770070355992,-10000.01,9.741e-05,2]
[404349946,1770070358651,-280.77359984,9.741e-05,2]
[404349947,1770070359176,-10000.01,9.741e-05,2]
[404349948,1770070359372,-10000.01,9.741e-05,2]
[404349949,1770070359547,-10000.01,9.741e-05,2]
[404349950,1770070359739,-10000.01,9.741e-05,2]
[404349951,1770070360020,-10000.01,9.741e-05,2]
[404349952,1770070360463,-10000.01,9.741e-05,2]
[404349953,1770070360730,-300.0,9.741e-05,2]
[404349954,1770070360810,-10000.01,9.741e-05,2]
[404349955,1770070361034,-10000.01,9.741e-05,2]
[404349956,1770070361413,-10000.01,9.741e-05,2]
[404349957,1770070362094,-10000.01,9.741e-05,2]
[404349958,1770070364549,-241.10012185,9.741e-05,2]
[404349959,1770070364942,-10000.01,9.741e-05,2]
[404349960,1770070365113,-10000.01,9.741e-05,2]
[404349961,1770070365268,-10000.01,9.741e-05,2]
[404349962,1770070365406,-10000.01,9.741e-05,2]
[404349963,1770070365562,-10000.01,9.741e-05,2]
[404349964,1770070365708,-10000.01,9.741e-05,2]
[404349965,1770070365873,-10000.01,9.741e-05,2]
[404349966,1770070366021,-10000.01,9.741e-05,2]
[404349967,1770070366052,-250.0,9.741e-05,2]
[404349968,1770070366173,-10000.01,9.741e-05,2]
[404349969,1770070367829,-479.13010388,9.741e-05,2]
[404349970,1770070368141,-10000.01,9.741e-05,2]
[404349971,1770070371013,-10000.01,9.741e-05,2]
[404349972,1770070371400,-10000.01,9.741e-05,2]
[404349973,1770070371513,-10000.01,9.741e-05,2]
[404349974,1770070371650,-10000.01,9.741e-05,2]
[404349975,1770070371826,-10000.01,9.741e-05,2]
[404349976,1770070371988,-10000.01,9.741e-05,2]
[404349977,1770070372134,-10000.01,9.741e-05,2]
[404349978,1770070372288,-10000.01,9.741e-05,2]
[404349979,1770070372413,-10000.01,9.741e-05,2]
[404349980,1770070374321,-10000.01,9.741e-05,2]
[404349981,1770070375240,-5000.01,9.741e-05,2]
[404349982,1770070375536,-5000.01,9.741e-05,2]
[404349983,1770070375780,-5000.01,9.741e-05,2]
[404349984,1770070375923,-5000.01,9.741e-05,2]
[404349985,1770070376037,-5000.01,9.741e-05,2]
[404349986,1770070376448,-5000.01,9.741e-05,2]
[404349987,1770070376465,-5000.01,9.741e-05,2]
[404349988,1770070376491,-5000.01,9.741e-05,2]
[404349989,1770070376849,-5000.01,9.741e-05,2]
[404349990,1770070376864,-5000.01,9.741e-05,2]
[404349991,1770070377674,-582.17740907,9.74e-05,2]
[404349992,1770070377708,-500.0,9.74e-05,2]
[404349993,1770070377745,-237.95053576,9.74e-05,2]
[404349994,1770070377780,-177.61928409,9.74e-05,2]
[404349995,1770070377819,-500.0,9.74e-05,2]
[404349996,1770070377854,-500.0,9.74e-05,2]
[404349997,1770070377890,-500.0,9.74e-05,2]
[404349998,1770070377924,-500.0,9.74e-05,2]
[404349999,1770070378187,-282.40678714,9.74e-05,2]
[404350000,1770070378226,-882.54341477,9.74e-05,2]
[404350001,1770070378260,-162.06981366,9.74e-05,2]
[404350002,1770070378453,-882.54341477,9.74e-05,2]
[404350003,1770070378462,-794.95211182,9.74e-05,2]
[404350004,1770070378538,-87.59130295,9.74e-05,2]
[404350005,1770070378581,-882.54341477,9.74e-05,2]
[404350006,1770070378622,-882.54341477,9.74e-05,2]
[404350007,1770070378672,-8147.33186751,9.741e-05,2]
[404350008,1770070378813,-282.40678714,9.74e-05,2]
[404350009,1770070378865,-600.13662763,9.74e-05,2]
[404350010,1770070378874,-282.40678714,9.74e-05,2]
[404350011,1770070378922,-600.13662763,9.74e-05,2]
[404350012,1770070378962,-882.54341477,9.74e-05,2]
[404350013,1770070379004,-882.54341477,9.74e-05,2]
[404350014,1770070379048,-882.54341477,9.74e-05,2]
[404350015,1770070379088,-882.54341477,9.74e-05,2]
[404350016,1770070379387,-882.54341477,9.74e-05,2]
[404350017,1770070379396,-882.54341477,9.74e-05,2]
[404350018,1770070379405,-1612.64266627,9.741e-05,2]
[404350019,1770070379472,-882.54341477,9.74e-05,2]
[404350020,1770070379659,-87.59130295,9.74e-05,2]
[404350021,1770070379698,-794.95211182,9.74e-05,2]
[404350022,1770070379707,-87.59130295,9.74e-05,2]
[404350023,1770070379746,-794.95211182,9.74e-05,2]
[404350024,1770070379755,-882.54341477,9.74e-05,2]
[404350025,1770070379765,-882.54341477,9.74e-05,2]
[404350026,1770070379775,-882.54341477,9.74e-05,2]
[404350027,1770070379784,-882.54341477,9.74e-05,2]
[404350028,1770070379793,-882.54341477,9.74e-05,2]
[404350029,1770070379803,-1086.98454935,9.741e-05,2]
[404350030,1770070379932,-600.13662763,9.74e-05,2]
[404350031,1770070379970,-282.40678714,9.74e-05,2]
[404350032,1770070379979,-600.13662763,9.74e-05,2]
[404350033,1770070380016,-282.40678714,9.74e-05,2]
[404350034,1770070380026,-600.13662763,9.74e-05,2]
[404350035,1770070380061,-282.40678714,9.74e-05,2]
[404350036,1770070380070,-600.13662763,9.74e-05,2]
[404350037,1770070380104,-282.40678714,9.74e-05,2]
[404350038,1770070380113,-600.13662763,9.74e-05,2]
[404350039,1770070380169,-282.40678714,9.74e-05,2]
[404350040,1770070380179,-882.54341477,9.74e-05,2]
[404350041,1770070380189,-574.43922467,9.74e-05,2]
[404350042,1770070380388,-308.1041901,9.74e-05,2]
[404350043,1770070380398,-574.43922467,9.74e-05,2]
[404350044,1770070380423,-308.1041901,9.74e-05,2]
[404350045,1770070380432,-882.54341477,9.74e-05,2]
[404350046,1770070380442,-882.54341477,9.74e-05,2]
[404350047,1770070380451,-882.54341477,9.74e-05,2]
[404350048,1770070380461,-882.54341477,9.74e-05,2]
[404350049,1770070380471,-882.54341477,9.74e-05,2]
[404350050,1770070380480,-882.54341477,9.74e-05,2]
[404350051,1770070380490,-882.54341477,9.74e-05,2]
[404350052,1770070380499,-882.54341477,9.74e-05,2]
[404350053,1770070380508,-866.4716622,9.741e-05,2]
[404350054,1770070380768,-882.54341477,9.74e-05,2]
[404350055,1770070380811,-882.54341477,9.74e-05,2]
[404350056,1770070380849,-882.54341477,9.74e-05,2]
[404350057,1770070380887,-882.54341477,9.74e-05,2]
[404350058,1770070380925,-882.54341477,9.74e-05,2]
[404350059,1770070380964,-292.03243753,9.74e-05,2]
[404350060,1770070381042,-590.51097724,9.74e-05,2]
[404350061,1770070381249,-882.54341477,9.74e-05,2]
[404350062,1770070381295,-882.54341477,9.74e-05,2]
[404350063,1770070381333,-882.54341477,9.74e-05,2]
[404350064,1770070381371,-882.54341477,9.74e-05,2]
[404350065,1770070381409,-876.09731259,9.74e-05,2]
[404350066,1770070381479,-6.44610218,9.74e-05,2]
[404350067,1770070381520,-882.54341477,9.74e-05,2]
[404350068,1770070381560,-882.54341477,9.74e-05,2]
[404350069,1770070381599,-882.54341477,9.74e-05,2]
[404350070,1770070381637,-882.54341477,9.74e-05,2]
[404350071,1770070382126,-596.95707942,9.741e-05,2]
[404350072,1770070382155,-2926.77047748,9.741e-05,2]
[404350073,1770070382170,-5000.01,9.741e-05,2]
[404350074,1770070382187,-5000.01,9.741e-05,2]
[404350075,1770070382213,-5000.01,9.741e-05,2]
[404350076,1770070382227,-5000.01,9.741e-05,2]
[404350077,1770070382250,-5000.01,9.741e-05,2]
[404350078,1770070382269,-5000.01,9.741e-05,2]
[404350079,1770070382285,-5000.01,9.741e-05,2]
[404350080,1770070382299,-5000.01,9.741e-05,2]
[404350081,1770070382312,-5000.01,9.741e-05,2]
[404350082,1770070382325,-5000.01,9.741e-05,2]
[404350083,1770070383188,-10000.01,9.741e-05,2]
[404350084,1770070383255,-573.71642087,9.741e-05,2]
[404350085,1770070383349,-10000.01,9.741e-05,2]
[404350086,1770070383511,-10000.01,9.741e-05,2]
[404350087,1770070386380,-10000.01,9.741e-05,2]
[404350088,1770070386630,-10000.01,9.741e-05,2]
[404350089,1770070386721,-5000.01,9.741e-05,2]
[404350090,1770070386795,-10000.01,9.741e-05,2]
[404350091,1770070386831,-5000.01,9.741e-05,2]
[404350092,1770070386941,-10000.01,9.741e-05,2]
[404350093,1770070386974,-5000.01,9.741e-05,2]
[404350094,1770070387068,-10000.01,9.741e-05,2]
[404350095,1770070387118,-174.56232373,9.741e-05,2]
[404350096,1770070387149,-5000.01,9.741e-05,2]
[404350097,1770070387211,-10000.01,9.741e-05,2]
[404350098,1770070387255,-5000.01,9.741e-05,2]
[404350099,1770070387354,-10000.01,9.741e-05,2]
[404350100,1770070387396,-5000.01,9.741e-05,2]
[404350101,1770070387523,-5000.01,9.741e-05,2]
[404350102,1770070387652,-5000.01,9.741e-05,2]
[404350103,1770070387788,-5000.01,9.741e-05,2]
[404350104,1770070387941,-5000.01,9.741e-05,2]
[404350105,1770070388598,-250.00209646,9.741e-05,2]
[404350106,1770070389559,-10000.01,9.741e-05,2]
[404350107,1770070389705,-10000.01,9.741e-05,2]
[404350108,1770070389900,-10000.01,9.741e-05,2]
[404350109,1770070392469,-10000.01,9.741e-05,2]
[404350110,1770070392707,-10000.01,9.741e-05,2]
[404350111,1770070392744,-5000.01,9.741e-05,2]
[404350112,1770070392846,-5000.01,9.741e-05,2]
[404350113,1770070392960,-5000.01,9.741e-05,2]
[404350114,1770070393088,-5000.01,9.741e-05,2]
[404350115,1770070393219,-5000.01,9.741e-05,2]
[404350116,1770070393445,-5000.01,9.741e-05,2]
[404350117,1770070393589,-5000.01,9.741e-05,2]
[404350118,1770070393729,-5000.01,9.741e-05,2]
[404350119,1770070393848,-5000.01,9.741e-05,2]
[404350120,1770070393963,-5000.01,9.741e-05,2]
[404350121,1770070395694,-10000.01,9.741e-05,2]
[404350122,1770070395907,-10000.01,9.741e-05,2]
[404350123,1770070396140,-4921.22440381,9.741e-05,2]
[404350124,1770070396174,-157.56119238,9.741e-05,2]
[404350125,1770070398456,-1045.1172017,9.74e-05,2]
[404350126,1770070398501,-1045.1172017,9.74e-05,2]
[404350127,1770070398543,-1045.1172017,9.74e-05,2]
[404350128,1770070398583,-1045.1172017,9.74e-05,2]
[404350129,1770070398627,-593.9551847,9.74e-05,2]
[404350130,1770070398824,-451.162017,9.74e-05,2]
[404350131,1770070398940,-1045.1172017,9.74e-05,2]
[404350132,1770070398991,-1045.1172017,9.74e-05,2]
[404350133,1770070399036,-1045.1172017,9.74e-05,2]
[404350134,1770070399079,-1045.1172017,9.74e-05,2]
[404350135,1770070399121,-593.9551847,9.74e-05,2]
[404350136,1770070399239,-451.162017,9.74e-05,2]
[404350137,1770070399290,-1045.1172017,9.74e-05,2]
[404350138,1770070399331,-1045.1172017,9.74e-05,2]
[404350139,1770070399373,-1045.1172017,9.74e-05,2]
[404350140,1770070399413,-1045.1172017,9.74e-05,2]
[404350141,1770070400009,-451.162017,9.74e-05,2]
[404350142,1770070400034,-593.9551847,9.74e-05,2]
[404350143,1770070400044,-142.7931677,9.74e-05,2]
[404350144,1770070442559,2953.0,9.726e-05,2]
[404350145,1770070447413,2047.01,9.731e-05,2]
[404350146,1770070447440,5000.01,9.731e-05,2]
[404350147,1770070473029,-255.99999983,9.731e-05,2]
[404350148,1770070488037,-427.99821254,9.731e-05,2]
[404350149,1770070490179,-200.0,9.731e-05,2]
[404350150,1770070495971,-373.99821254,9.731e-05,2]
[404350151,1770070497516,-356.66517729,9.731e-05,2]
[404350152,1770070499075,-452.0,9.731e-05,2]
[404350153,1770070501730,-481.07873741,9.731e-05,2]
[404350154,1770070504036,-177.71399708,9.731e-05,2]
[404350155,1770070506088,-354.90584462,9.731e-05,2]
[404350156,1770070507781,-250.0,9.731e-05,2]
[404350157,1770070510861,-318.49932487,9.731e-05,2]
[404350158,1770070514310,-186.75781478,9.731e-05,2]
[404350159,1770070518254,-1622.9577214,9.731e-05,2]
[404350160,1770070521056,-138.42108336,9.731e-05,2]
[404350161,1770070521078,-262.57891664,9.739e-05,2]
[404350162,1770070523595,-500.0,9.714e-05,2]
[404350163,1770070523620,-150.0,9.714e-05,2]
[404350164,1770070523643,-309.42108336,9.739e-05,2]
[404350165,1770070523668,-281.24012483,9.74e-05,2]
[404350166,1770070525741,-18.75987517,9.74e-05,2]
[404350167,1770070525764,-469.26403141,9.74e-05,2]
[404350168,1770070527297,-166.66000017,9.74e-05,2]
[404350169,1770070530554,-302.0,9.74e-05,2]
[404350170,1770070532708,-262.07596842,9.74e-05,2]
[404350171,1770070532731,-150.0,9.74e-05,2]
[404350172,1770070532753,-87.92403158,9.74e-05,2]
[404350173,1770070536114,-205.0,9.74e-05,2]
[404350174,1770070537631,-7.07596842,9.74e-05,2]
[404350175,1770070537655,-343.92403158,9.74e-05,2]
[404350176,1770070541590,-156.07596842,9.74e-05,2]
[404350177,1770070541634,-245.06346995,9.74e-05,2]
[404350178,1770070541662,-98.86056163,9.74e-05,2]
[404350179,1770070563040,-145.64192403,9.74e-05,2]
[404350180,1770070563069,-354.35807597,9.741e-05,2]
[404350181,1770070564016,5000.01,9.726e-05,2]
[404350182,1770070564038,5000.01,9.726e-05,2]
[404350183,1770070564061,2060.98,9.726e-05,2]
[404350184,1770070565804,-199.75245602,9.741e-05,2]
[404350185,1770070567862,-337.02390658,9.741e-05,2]
[404350186,1770070569535,-500.0,9.741e-05,2]
[404350187,1770070574202,-500.0,9.741e-05,2]
[404350188,1770070575893,-302.0,9.741e-05,2]
[404350189,1770070577975,-500.0,9.741e-05,2]
[404350190,1770070579643,-302.0,9.741e-05,2]
[404350191,1770070581894,-651.0,9.741e-05,2]
[404350192,1770070583385,-471.24218522,9.741e-05,2]
[404350193,1770070585565,-500.0,9.741e-05,2]
[404350194,1770070588194,-154.90277233,9.741e-05,2]
[404350195,1770070590383,-302.0,9.741e-05,2]
[404350196,1770070592581,-798.09722767,9.741e-05,2]
[404350197,1770070596165,-500.0,9.741e-05,2]
[404350198,1770070597833,-500.0,9.741e-05,2]
[404350199,1770070599988,-302.0,9.741e-05,2]
[404350200,1770070602060,-302.0,9.741e-05,2]
[404350201,1770070606873,-302.0,9.741e-05,2]
[404350202,1770070608329,308.0088,9.641e-05,2]
[404350203,1770070612245,-651.0,9.741e-05,2]
[404350204,1770070613733,-250.0,9.741e-05,2]
[404350205,1770070616373,-302.0,9.741e-05,2]
[404350206,1770070618465,-500.0,9.741e-05,2]
[404350207,1770070620771,-500.0,9.741e-05,2]
[404350208,1770070622258,-1501.0,9.741e-05,2]
[404350209,1770070626092,-439.10829603,9.741e-05,2]
[404350210,1770070628203,-300.0,9.741e-05,2]
[404350211,1770070629914,-651.0,9.741e-05,2]
[404350212,1770070633887,-500.036556,9.741e-05,2]
[404350213,1770070636036,-232.6908194,9.741e-05,2]
[404350214,1770070638152,290.76,9.7e-05,2]
[404350215,1770070642985,-948.24399851,9.741e-05,2]
[404350216,1770070644498,-313.97609342,9.741e-05,2]
[404350217,1770070648385,-302.0,9.741e-05,2]
[404350218,1770070650011,-302.0,9.741e-05,2]
[404350219,1770070652144,-302.0,9.741e-05,2]
[404350220,1770070654187,-500.0,9.741e-05,2]
[404350221,1770070656369,-500.0,9.741e-05,2]
[404350222,1770070658457,-313.97609342,9.741e-05,2]
[404350223,1770070660110,-500.0,9.741e-05,2]
[404350224,1770070662196,-302.0,9.741e-05,2]
[404350225,1770070664590,-651.0,9.741e-05,2]
[404350226,1770070667027,-500.0,9.741e-05,2]
[404350227,1770070670258,-500.0,9.741e-05,2]
[404350228,1770070671824,-500.0,9.741e-05,2]
[404350229,1770070705480,500.0,9.714e-05,2]
[404350230,1770070705973,150.0,9.714e-05,2]
[404350231,1770070758195,-550.0,9.739e-05,2]
[404350232,1770070760973,-230.54652626,9.739e-05,2]
[404350233,1770070762647,-419.45347374,9.739e-05,2]
[404350234,1770070762670,-80.54652626,9.74e-05,2]
[404350235,1770070765239,-207.13383015,9.74e-05,2]
[404350236,1770070767346,-12.31964359,9.74e-05,2]
[404350237,1770070767373,-150.0,9.74e-05,2]
[404350238,1770070767397,-300.0,9.74e-05,2]
[404350239,1770070767425,-500.0,9.74e-05,2]
[404350240,1770070767457,-106.78435084,9.74e-05,2]
[404350241,1770070768942,-385.62863536,9.74e-05,2]
[404350242,1770070770937,-67.80789213,9.74e-05,2]
[404350243,1770070770968,-352.22159314,9.74e-05,2]
[404350244,1770070773921,-203.46109691,9.74e-05,2]
[404350245,1770070776213,-4.53818828,9.74e-05,2]
[404350246,1770070776246,-215.54946833,9.74e-05,2]
[404350247,1770070777967,-344.67141,9.74e-05,2]
[404350248,1770070777998,-560.22087833,9.74e-05,2]
[404350249,1770070778027,-560.22087833,9.74e-05,2]
[404350250,1770070778056,-560.22087833,9.74e-05,2]
[404350251,1770070778084,-560.22087833,9.74e-05,2]
[404350252,1770070778111,-560.22087833,9.74e-05,2]
[404350253,1770070778138,-560.22087833,9.74e-05,2]
[404350254,1770070778164,-560.22087833,9.74e-05,2]
[404350255,1770070778192,-56.6923102,9.74e-05,2]
[404350256,1770070781978,-503.52856813,9.74e-05,2]
[404350257,1770070782007,-351.33024095,9.74e-05,2]
[404350258,1770070783572,-208.89063738,9.74e-05,2]
[404350259,1770070783600,-217.61663733,9.74e-05,2]
[404350260,1770070785074,-342.604241,9.74e-05,2]
[404350261,1770070785100,-560.22087833,9.74e-05,2]
[404350262,1770070785127,-397.01233117,9.74e-05,2]
[404350263,1770070787879,-163.20854716,9.74e-05,2]
[404350264,1770070787909,-336.79145284,9.74e-05,2]
[404350265,1770070789471,-223.42942549,9.74e-05,2]
[404350266,1770070789510,-205.68075659,9.74e-05,2]
[404350267,1770070803072,-362.88705281,9.739e-05,2]
[404350268,1770070805216,-306.0443971,9.739e-05,2]
[404350269,1770070807169,-500.0,9.739e-05,2]
[404350270,1770070809434,-31.06855009,9.739e-05,2]
[404350271,1770070809461,-129.93144991,9.739e-05,2]
[404350272,1770070812194,-170.06855009,9.739e-05,2]
[404350273,1770070812218,-300.0,9.739e-05,2]
[404350274,1770070812241,-382.35144974,9.74e-05,2]
[404350275,1770070814712,-117.64855026,9.74e-05,2]
[404350276,1770070814740,-195.70161981,9.74e-05,2]
[404350277,1770070817524,-34.29838019,9.74e-05,2]
[404350278,1770070817558,-354.54012174,9.74e-05,2]
[404350279,1770070817591,-560.22087833,9.74e-05,2]
[404350280,1770070817623,-367.38061974,9.74e-05,2]
[404350281,1770070820553,-192.84025859,9.74e-05,2]
[404350282,1770070820586,-9.16114218,9.74e-05,2]